bitfinex/quotes_ETHUSD_20250803
["timestamp","ask_amount","ask_price","bid_price","bid_amount"]
[1754195286462,0.001,3449.8,3449.7,0.9415]
[1754195286634,0.001,3449.8,3449.7,1.2582853]
[1754195288132,5.3372,3449.8,3449.4,0.873661]
[1754195288462,0.4807,3449.7,3449.4,0.873661]
[1754195288679,4.8917,3449.8,3449.4,0.873661]
[1754195288872,4.8917,3449.8,3449.4,1.335761]
[1754195289054,0.4807,3449.7,3449.4,0.873661]
[1754195291368,0.4807,3449.6,3449.4,0.873661]
[1754195291556,4.409,3449.5,3449.4,0.873661]
[1754195299083,4.409,3449.5,3449.4,1.815161]
[1754195299469,4.409,3449.5,3449.4,1.335761]
[1754195300193,4.409,3449.5,3449.4,0.873661]
[1754195300898,4.409,3449.5,3449.4,1.5100171]
[1754195301264,4.409,3449.5,3449.4,4.9678171]
[1754195302986,4.409,3449.5,3449.4,4.0545171]
[1754195303185,4.409,3449.5,3449.4,0.873661]
[1754195308299,4.8863,3449.5,3449.4,0.873661]
[1754195310889,4.409,3449.5,3449.4,0.873661]
[1754195312202,4.8863,3449.5,3449.4,0.873661]
[1754195312506,4.409,3449.5,3449.4,0.873661]
[1754195312689,4.409,3449.5,3449.4,1.786961]
[1754195313009,4.409,3449.5,3449.4,1.5223371]
[1754195313209,4.409,3449.5,3449.4,1.0668371]
[1754195314199,5.3375,3449.5,3449.4,0.873661]
[1754195319794,4.8863,3449.5,3449.4,0.873661]
[1754195319994,5.3375,3449.5,3449.4,0.873661]
[1754195330304,4.8863,3449.5,3449.4,0.873661]
[1754195331326,5.3279,3449.5,3449.4,0.873661]
[1754195331823,4.8863,3449.5,3449.4,0.873661]
[1754195333330,5.3279,3449.5,3449.4,0.873661]
[1754195334039,5.86069,3449.5,3449.4,0.873661]
[1754195335701,4.409,3449.5,3449.4,0.873661]
[1754195336655,4.8862,3449.5,3449.4,0.873661]
[1754195339330,4.409,3449.5,3449.4,0.873661]
[1754195339832,4.409,3449.5,3449.4,1.362261]
[1754195340001,4.409,3449.5,3449.4,1.821561]
[1754195340197,4.409,3449.5,3449.4,6.31837056]
[1754195340431,4.407,3449.5,3449.4,3.31837056]
[1754195342255,4.407,3449.5,3449.4,0.873661]
[1754195342457,5.3258,3449.5,3449.4,0.873661]
[1754195344647,4.407,3449.5,3449.4,0.873661]
[1754195361380,4.8789,3449.5,3449.4,0.873661]
[1754195364118,4.407,3449.5,3449.4,1.797461]
[1754195364445,5.3328,3449.5,3449.4,5.36806056]
[1754195364734,5.3328,3449.5,3449.4,3.873661]
[1754195368650,5.3328,3449.5,3449.4,3.002]
[1754195370014,5.8828,3449.5,3449.4,0.002]
[1754195370248,6.47118,3449.5,3449.4,0.002]
[1754195392387,4.957,3449.5,3449.4,0.002]
[1754195393508,5.9151,3449.5,3449.4,0.002]
[1754195394602,0.55,3449.5,3449.4,0.002]
[1754195394904,4.956,3449.5,3449.4,0.002]
[1754195397277,5.4478,3449.5,3449.4,0.002]
[1754195397464,6.50561,3449.5,3449.4,0.002]
[1754195398578,6.03931,3449.5,3449.4,0.002]
[1754195398782,6.50561,3449.5,3449.4,0.002]
[1754195408824,13.64361,3449.5,3449.4,0.002]
[1754195409189,13.78944781,3449.5,3449.4,0.002]
[1754195409383,13.64361,3449.5,3449.4,0.002]
[1754195410215,15.5334467,3449.5,3449.4,0.002]
[1754195414617,15.38761,3449.5,3449.4,0.002]
[1754195420232,14.42951,3449.5,3449.4,0.002]
[1754195420417,14.91151,3449.5,3449.4,0.002]
[1754195422544,15.36221,3449.5,3449.4,0.002]
[1754195428939,45.78035369,3449.5,3449.4,0.002]
[1754195429139,45.36221,3449.5,3449.4,0.002]
[1754195429773,45.50806288,3449.5,3449.4,0.002]
[1754195429959,15.50806288,3449.5,3449.4,0.002]
[1754195430271,45.50806288,3449.5,3449.4,0.002]
[1754195430646,45.73059973,3449.5,3449.4,0.002]
[1754195431247,56.29527802,3449.5,3449.4,0.002]
[1754195433203,7.136,3449.3,3449.0,0.002]
[1754195433393,32.294,3449.1,3449.0,0.002]
[1754195433596,42.58638748,3449.1,3449.0,0.002]
[1754195433793,43.51908748,3449.1,3449.0,0.002]
[1754195433998,43.51908748,3449.1,3449.0,0.00199946]
[1754195434314,53.71208748,3449.1,3449.0,0.00199946]
[1754195434489,56.58033455,3449.1,3449.0,0.00199946]
[1754195434977,53.52333455,3449.1,3449.0,0.00199946]
[1754195437393,54.23217824,3449.1,3449.0,0.00199946]
[1754195437993,57.28917824,3449.1,3449.0,0.00199946]
[1754195438716,30.0,3448.7,3448.5,0.002]
[1754195438872,49.89588114,3448.6,3448.5,0.002]
[1754195439086,57.92633509,3448.6,3448.5,0.002]
[1754195441756,27.92633509,3448.6,3448.5,0.002]
[1754195441941,57.92633509,3448.6,3448.5,0.002]
[1754195442866,46.84710049,3448.6,3448.5,0.002]
[1754195443729,47.77980049,3448.6,3448.5,0.002]
[1754195444040,46.84710049,3448.6,3448.5,0.002]
[1754195444249,47.32910049,3448.6,3448.5,0.002]
[1754195444409,47.77980049,3448.6,3448.5,0.002]
[1754195445329,47.32910049,3448.6,3448.5,0.002]
[1754195445532,47.32821527,3448.6,3448.5,0.002]
[1754195445751,47.77891527,3448.6,3448.5,0.002]
[1754195446750,47.32821527,3448.6,3448.5,0.002]
[1754195447243,47.77891527,3448.6,3448.5,0.002]
[1754195447820,48.19705896,3448.6,3448.5,0.002]
[1754195448048,48.59165727,3448.6,3448.5,0.002]
[1754195448210,2.294,3447.9,3447.5,0.002]
[1754195448413,30.55,3447.6,3447.5,0.002]
[1754195448624,34.955,3447.6,3447.5,0.002]
[1754195448950,35.437,3447.6,3447.5,0.002]
[1754195449948,34.955,3447.6,3447.5,0.002]
[1754195450245,34.955,3447.6,3447.5,0.8884]
[1754195450548,37.82324707,3447.6,3447.5,0.8884]
[1754195451309,37.82324707,3447.6,3447.5,0.002]
[1754195451642,39.56724707,3447.6,3447.5,0.002]
[1754195452137,46.69724761,3447.6,3447.5,0.002]
[1754195453213,16.69724761,3447.6,3447.5,0.002]
[1754195453630,46.69724761,3447.6,3447.5,0.002]
[1754195456441,47.14754761,3447.6,3447.5,0.002]
[1754195459354,47.72513669,3447.6,3447.5,0.002]
[1754195459646,17.72513669,3447.6,3447.5,0.002]
[1754195459857,47.72513669,3447.6,3447.5,0.002]
[1754195460028,57.87167129,3447.6,3447.5,0.002]
[1754195460349,32.294,3447.2,3447.1,0.002]
[1754195460551,43.97198962,3447.2,3447.1,0.002]
[1754195460712,44.85488962,3447.2,3447.1,0.002]
[1754195460915,55.00142422,3447.2,3447.1,0.002]
[1754195461749,25.00142422,3447.2,3447.1,0.002]
[1754195461958,57.869618,3447.2,3447.1,0.002]
[1754195462320,42.4351834,3447.2,3447.1,0.002]
[1754195462561,46.8411834,3447.2,3447.1,0.002]
[1754195462756,16.8411834,3447.2,3447.1,0.002]
[1754195462968,47.2914834,3447.2,3447.1,0.002]
[1754195463326,47.7240834,3447.2,3447.1,0.002]
[1754195463730,47.2914834,3447.2,3447.1,0.002]
[1754195464062,42.4351834,3447.2,3447.1,0.002]
[1754195464263,46.8401834,3447.2,3447.1,0.002]
[1754195465320,42.4351834,3447.2,3447.1,0.002]
[1754195465560,7.27293633,3447.2,3447.1,0.8884]
[1754195465745,11.67893633,3447.2,3447.1,0.8884]
[1754195466164,12.22893633,3447.2,3447.1,0.8884]
[1754195466348,11.53400054,3447.2,3447.1,0.8884]
[1754195466657,12.08400054,3447.2,3447.1,0.8884]
[1754195467369,11.53400054,3447.2,3447.1,0.8884]
[1754195467529,12.08400054,3447.2,3447.1,0.8884]
[1754195471209,7.67800054,3447.2,3447.1,0.8884]
[1754195471389,7.12800054,3447.2,3447.1,0.8884]
[1754195471704,11.53300054,3447.2,3447.1,0.8884]
[1754195472079,6.975,3447.8,3447.1,1.0646808]
[1754195472279,0.14511783,3447.7,3447.2,0.8864]
[1754195472481,4.405,3447.7,3447.3,0.8864]
[1754195472673,4.405,3447.7,3447.1,0.1782808]
[1754195472674,4.405,3447.6,3447.4,0.8864]
[1754195472878,4.405,3447.5,3447.4,1.42112154]
[1754195473500,4.405,3447.5,3447.4,2.30752154]
[1754195476610,4.405,3447.5,3447.4,6.17969454]
[1754195478722,4.404,3447.5,3447.4,3.17969454]
[1754195487801,6.975,3447.8,3447.5,3.0]
[1754195488002,4.404,3447.7,3447.6,14.47366704]
[1754195488761,6.975,3447.8,3447.7,3.0]
[1754195488957,11.379,3447.8,3447.7,3.0]
[1754195489164,4.404,3447.8,3447.7,3.4573]
[1754195489365,4.404,3447.8,3447.7,5.4010161]
[1754195490013,4.403,3447.8,3447.7,5.4010161]
[1754195493139,4.403,3447.8,3447.7,6.2731101]
[1754195494627,0.001,3447.8,3447.7,6.2731101]
[1754195494935,4.404,3447.8,3447.7,6.2731101]
[1754195500060,4.404,3447.8,3447.7,5.8185101]
[1754195500568,4.404,3447.8,3447.7,6.2731101]
[1754195505871,4.404,3447.8,3447.7,5.3612101]
[1754195509416,0.001,3447.9,3447.7,6.2731101]
[1754195509576,0.001,3447.9,3447.8,0.52351868]
[1754195510104,0.4993,3447.9,3447.8,0.52351868]
[1754195510402,5.3374,3447.9,3447.8,0.872006]
[1754195511297,5.3374,3447.9,3447.4,0.002]
[1754195511469,0.970655,3447.8,3447.4,0.874006]
[1754195511676,2.0217655,3447.7,3447.4,0.002]
[1754195512105,0.9344,3447.6,3447.4,0.002]
[1754195512308,4.402,3447.5,3447.4,0.002]
[1754195512478,5.37265815,3447.5,3447.4,0.002]
[1754195514608,5.3364,3447.5,3447.4,0.002]
[1754195519379,6.4236655,3447.5,3447.4,0.002]
[1754195521986,5.4513,3447.5,3447.4,0.002]
[1754195522188,5.8874,3447.5,3447.4,0.002]
[1754195522494,5.3374,3447.5,3447.4,0.002]
[1754195522713,4.9013,3447.5,3447.4,0.002]
[1754195523022,0.001,3447.9,3447.4,0.002]
[1754195523229,4.9013,3447.8,3447.4,0.002]
[1754195523603,0.4983,3447.7,3447.4,0.002]
[1754195523799,4.403,3447.6,3447.4,0.002]
[1754195524621,4.9013,3447.6,3447.4,0.002]
[1754195525988,0.4983,3447.5,3447.4,0.002]
[1754195527209,0.9344,3447.5,3447.4,0.002]
[1754195527409,0.97065815,3447.5,3447.4,0.002]
[1754195528210,0.9344,3447.5,3447.4,0.002]
[1754195528619,0.97065815,3447.5,3447.4,0.002]
[1754195529112,0.9344,3447.5,3447.4,0.002]
[1754195529723,0.4983,3447.5,3447.4,0.002]
[1754195530233,0.4983,3447.5,3447.4,0.12232]
[1754195531437,4.403,3447.6,3447.4,0.12232]
[1754195531636,4.9013,3447.6,3447.4,0.12232]
[1754195533359,4.403,3447.6,3447.4,0.12232]
[1754195533659,0.4983,3447.5,3447.4,0.12232]
[1754195534148,4.403,3447.6,3447.4,0.12232]
[1754195534352,4.9013,3447.6,3447.4,0.12232]
[1754195534762,4.403,3447.6,3447.4,0.12232]
[1754195535061,0.9344,3447.5,3447.4,0.12232]
[1754195536059,0.4983,3447.5,3447.4,0.12232]
[1754195541966,0.4983,3447.5,3447.4,0.002]
[1754195542136,0.9729,3447.5,3447.4,0.002]
[1754195542331,1.00915815,3447.5,3447.4,0.002]
[1754195542542,0.9729,3447.5,3447.4,0.002]
[1754195543772,1.00915815,3447.5,3447.4,0.002]
[1754195544144,0.9729,3447.5,3447.4,0.002]
[1754195544588,1.00915815,3447.5,3447.4,0.002]
[1754195545296,0.9729,3447.5,3447.4,0.002]
[1754195545706,0.53769,3447.5,3447.4,0.002]
[1754195545912,0.55,3447.4,3447.1,0.002]
[1754195546110,0.55,3447.2,3447.1,0.002]
[1754195546265,1.23020379,3447.2,3447.1,0.002]
[1754195546466,2.2087651,3447.2,3447.1,0.002]
[1754195546694,32.496749,3447.2,3447.1,0.002]
[1754195547007,32.31802554,3447.2,3447.1,0.002]
[1754195547790,34.06202554,3447.2,3447.1,0.002]
[1754195553823,32.31802554,3447.2,3447.1,0.002]
[1754195554126,35.22872554,3447.2,3447.1,0.002]
[1754195554314,35.69642554,3447.2,3447.1,0.002]
[1754195554515,36.24642554,3447.2,3447.1,0.002]
[1754195555030,36.17102554,3447.2,3447.1,0.002]
[1754195555323,36.72102554,3447.2,3447.1,0.002]
[1754195555639,32.31802554,3447.2,3447.1,0.002]
[1754195555933,6.24742554,3447.2,3447.1,0.002]
[1754195556343,6.72202554,3447.2,3447.1,0.002]
[1754195556525,36.72202554,3447.2,3447.1,0.002]
[1754195556993,36.72122718,3447.2,3447.1,0.002]
[1754195557396,6.72122718,3447.2,3447.1,0.002]
[1754195558807,36.72122718,3447.2,3447.1,0.002]
[1754195559028,37.0912751,3447.2,3447.1,0.002]
[1754195560528,44.21927564,3447.2,3447.1,0.002]
[1754195560840,14.21927564,3447.2,3447.1,0.002]
[1754195561434,45.96327564,3447.2,3447.1,0.002]
[1754195562804,45.96322005,3447.2,3447.1,0.002]
[1754195564806,49.02422005,3447.2,3447.1,0.002]
[1754195566707,51.92512513,3447.2,3447.1,0.002]
[1754195567055,51.92512513,3447.2,3446.7,0.002]
[1754195567056,38.54694173,3446.8,3446.7,0.002]
[1754195567278,53.61219205,3446.8,3446.7,0.002]
[1754195567490,54.26379205,3446.8,3446.7,0.002]
[1754195568167,24.26379205,3446.8,3446.7,0.002]
[1754195568380,54.26379205,3446.8,3446.7,0.002]
[1754195568578,57.13203912,3446.8,3446.7,0.002]
[1754195568875,57.13203912,3446.8,3445.8,0.002]
[1754195568876,39.41600054,3446.1,3445.8,0.002]
[1754195569081,50.94466834,3446.1,3445.8,0.002]
[1754195569283,51.88696834,3446.1,3445.8,0.002]
[1754195569984,52.10448578,3446.1,3445.8,0.002]
[1754195570150,24.97273285,3446.1,3445.8,0.002]
[1754195570351,54.97273285,3446.1,3445.8,0.002]
[1754195572055,50.56773285,3446.1,3445.8,0.002]
[1754195572286,54.97573285,3446.1,3445.8,0.002]
[1754195576802,24.97573285,3446.1,3445.8,0.002]
[1754195577462,54.97573285,3446.1,3445.8,0.002]
[1754195578301,24.97573285,3446.1,3445.8,0.002]
[1754195578474,58.40678077,3446.1,3445.8,0.002]
[1754195579071,58.40672501,3446.1,3445.8,0.002]
[1754195579276,57.56207709,3446.1,3445.8,0.002]
[1754195579572,58.02477709,3446.1,3445.8,0.002]
[1754195580388,58.39482501,3446.1,3445.8,0.002]
[1754195580787,53.05642501,3446.1,3445.8,0.002]
[1754195581070,57.09537709,3446.1,3445.8,0.002]
[1754195581296,27.09537709,3446.1,3445.8,0.002]
[1754195581600,57.09537709,3446.1,3445.8,0.002]
[1754195581903,53.48437709,3446.1,3445.8,0.002]
[1754195582080,53.48437709,3446.1,3446.0,0.9164]
[1754195582283,12.50337655,3446.1,3446.0,0.9164]
[1754195582478,44.04412948,3446.1,3446.0,0.9164]
[1754195582808,32.65612948,3446.1,3446.0,0.9164]
[1754195583008,43.49912948,3446.1,3446.0,0.9164]
[1754195583383,44.04912948,3446.1,3446.0,0.9164]
[1754195584531,44.04913629,3446.1,3446.0,0.9164]
[1754195584697,46.91738336,3446.1,3446.0,0.9164]
[1754195585817,46.69986592,3446.1,3446.0,0.9164]
[1754195587203,46.69886592,3446.1,3446.0,0.9164]
[1754195587393,46.69897778,3446.1,3446.0,0.9164]
[1754195589024,46.69897778,3446.1,3446.0,0.4438]
[1754195589481,16.69897778,3446.1,3446.0,0.4438]
[1754195589681,43.83073071,3446.1,3446.0,0.4438]
[1754195589992,51.44063125,3446.1,3446.0,0.002]
[1754195590202,51.90351065,3446.1,3446.0,0.002]
[1754195590404,21.90351065,3446.1,3446.0,0.002]
[1754195590611,51.90351065,3446.1,3446.0,0.002]
[1754195590916,54.77175772,3446.1,3446.0,0.002]
[1754195591093,54.30905772,3446.1,3446.0,0.002]
[1754195591692,53.82115772,3446.1,3446.0,0.002]
[1754195592119,53.82123657,3446.1,3446.0,0.002]
[1754195592530,24.30913657,3446.1,3446.0,0.002]
[1754195592687,54.77189405,3446.1,3446.0,0.002]
[1754195592890,55.14194197,3446.1,3446.0,0.002]
[1754195597522,50.73194197,3446.1,3446.0,0.002]
[1754195597851,55.13994197,3446.1,3446.0,0.002]
[1754195599643,25.13994197,3446.1,3446.0,0.002]
[1754195599820,55.13994197,3446.1,3446.0,0.002]
[1754195600020,55.13994197,3446.1,3445.8,0.002]
[1754195600021,39.41400054,3445.9,3445.8,0.002]
[1754195600220,54.11258158,3445.9,3445.8,0.002]
[1754195600516,55.3904295,3445.9,3445.8,0.002]
[1754195603375,55.02038158,3445.9,3445.8,0.002]
[1754195604343,55.3904295,3445.9,3445.8,0.002]
[1754195604698,58.25867657,3445.9,3445.8,0.002]
[1754195605350,57.88862865,3445.9,3445.8,0.002]
[1754195608677,53.85167657,3445.9,3445.8,0.002]
[1754195608864,39.41000054,3445.6,3445.5,0.9372]
[1754195609175,46.82929405,3445.6,3445.5,0.4812]
[1754195609947,46.82929405,3445.6,3445.5,0.002]
[1754195610953,46.83029405,3445.6,3445.5,0.002]
[1754195613351,53.81229405,3445.6,3445.5,0.002]
[1754195614879,23.81229405,3445.6,3445.5,0.002]
[1754195615084,53.81229405,3445.6,3445.5,0.002]
[1754195616883,53.81254603,3445.6,3445.5,0.002]
[1754195620089,53.81254603,3445.6,3445.5,0.9372]
[1754195620300,53.81254603,3445.6,3445.5,0.458]
[1754195620592,53.81254603,3445.6,3445.5,0.002]
[1754195622303,54.72034603,3445.6,3445.5,0.002]
[1754195622475,54.72048527,3445.6,3445.5,0.002]
[1754195622669,54.27828527,3445.6,3445.5,0.002]
[1754195623607,53.81268527,3445.6,3445.5,0.002]
[1754195624980,53.81368527,3445.6,3445.5,0.002]
[1754195625687,23.81368527,3445.6,3445.5,0.002]
[1754195625887,53.81368527,3445.6,3445.5,0.002]
[1754195627222,54.27928527,3445.6,3445.5,0.002]
[1754195628374,54.72148527,3445.6,3445.5,0.002]
[1754195629208,54.27928527,3445.6,3445.5,0.002]
[1754195630462,49.40668527,3445.6,3445.5,0.002]
[1754195630667,53.81268527,3445.6,3445.5,0.002]
[1754195631123,53.81279447,3445.6,3445.5,0.002]
[1754195631717,53.81279447,3445.6,3445.5,0.8983]
[1754195634632,53.81279447,3445.6,3445.5,0.002]
[1754195635223,23.81279447,3445.6,3445.5,0.002]
[1754195635424,53.81279447,3445.6,3445.5,0.002]
[1754195637327,23.81279447,3445.6,3445.5,0.002]
[1754195637625,53.81279447,3445.6,3445.5,0.002]
[1754195638649,54.73119447,3445.6,3445.5,0.002]
[1754195639343,54.58564761,3445.6,3445.5,0.002]
[1754195639693,54.13144761,3445.6,3445.5,0.002]
[1754195640431,53.66724761,3445.6,3445.5,0.002]
[1754195641316,54.58564761,3445.6,3445.5,0.002]
[1754195642398,24.58564761,3445.6,3445.5,0.002]
[1754195642617,54.13144761,3445.6,3445.5,0.002]
[1754195642826,54.58564761,3445.6,3445.5,0.002]
[1754195644029,54.95569553,3445.6,3445.5,0.002]
[1754195644438,24.95569553,3445.6,3445.5,0.002]
[1754195644747,54.95569553,3445.6,3445.5,0.002]
[1754195645501,24.95569553,3445.6,3445.5,0.002]
[1754195645841,54.95569553,3445.6,3445.5,0.002]
[1754195646253,54.58564761,3445.6,3445.5,0.002]
[1754195647289,2.294,3445.3,3445.1,0.002]
[1754195647562,36.73628236,3445.2,3445.1,0.002]
[1754195647866,37.6184,3445.2,3445.1,0.002]
[1754195648563,7.6184,3445.2,3445.1,0.002]
[1754195648847,37.6184,3445.2,3445.1,0.002]
[1754195649063,40.48664707,3445.2,3445.1,0.002]
[1754195649418,40.63187194,3445.2,3445.1,0.002]
[1754195652854,40.63178409,3445.2,3445.1,0.002]
[1754195653287,2.294,3444.6,3444.5,0.8963]
[1754195653556,43.95513756,3444.6,3444.5,0.8963]
[1754195653765,0.55,3444.4,3443.0,0.4649]
[1754195654002,30.0,3444.2,3444.1,0.8963]
[1754195655661,30.55,3444.2,3444.1,0.8963]
[1754195655900,30.69506631,3444.2,3444.1,0.8963]
[1754195656095,33.56331338,3444.2,3444.1,0.8963]
[1754195656581,40.54631338,3444.2,3444.1,0.8963]
[1754195656777,0.55,3443.9,3442.1,10.1465346]
[1754195656996,0.55,3443.9,3442.5,10.1465346]
[1754195656997,30.0,3443.7,3442.5,10.1465346]
[1754195657199,30.0,3443.5,3442.6,1.91095346]
[1754195657499,4.406,3443.4,3442.7,3.8963]
[1754195657701,4.406,3443.4,3442.6,4.01465346]
[1754195657907,4.406,3443.4,3442.8,0.8963]
[1754195658071,4.406,3443.4,3442.7,0.99798132]
[1754195658408,4.406,3443.3,3442.8,0.8963]
[1754195658731,4.406,3443.3,3442.9,0.8963]
[1754195658871,4.406,3443.3,3443.0,0.8963]
[1754195659067,4.406,3443.3,3442.6,3.0]
[1754195659068,0.4406,3443.2,3442.6,3.0]
[1754195659404,0.55,3443.7,3442.7,0.8963]
[1754195659604,4.413,3443.6,3442.8,0.9094]
[1754195659806,4.413,3443.6,3442.9,0.9094]
[1754195659973,4.413,3443.6,3443.0,0.9094]
[1754195660173,4.413,3443.6,3443.1,0.9094]
[1754195660410,4.413,3443.6,3443.2,0.9094]
[1754195660708,4.413,3443.6,3443.3,0.9094]
[1754195660863,8.85400054,3443.8,3443.4,0.9094]
[1754195661068,4.415,3443.7,3442.9,3.0]
[1754195661306,4.415,3443.7,3443.5,0.9094]
[1754195661504,7.11000054,3443.7,3443.6,0.9094]
[1754195661697,11.52500054,3443.7,3443.6,0.9094]
[1754195661898,11.52500054,3443.7,3442.2,0.873481]
[1754195661899,0.55,3443.4,3443.0,0.9094]
[1754195662095,4.415,3443.3,3443.1,0.9094]
[1754195662300,30.0,3443.6,3443.2,0.9094]
[1754195662516,4.417,3443.5,3443.3,0.9094]
[1754195662822,7.11000054,3443.7,3443.4,0.9094]
[1754195663121,7.11000054,3443.7,3443.5,0.9094]
[1754195663323,7.11000054,3443.7,3443.6,0.9094]
[1754195663472,11.52800054,3443.7,3443.6,0.9094]
[1754195664284,6.983,3444.2,3443.6,5.40233266]
[1754195664490,4.418,3444.1,3443.6,4.49293266]
[1754195664690,4.418,3444.1,3443.7,0.9094]
[1754195664930,4.418,3444.1,3443.8,0.9094]
[1754195665089,4.418,3444.1,3443.6,1.49293266]
[1754195665296,4.418,3444.1,3443.9,0.9094]
[1754195665515,4.418,3444.1,3443.6,1.49293266]
[1754195665676,4.418,3444.1,3444.0,0.9094]
[1754195667174,4.418,3444.1,3444.0,1.782672]
[1754195667379,6.1081,3444.1,3444.0,0.2221789]
[1754195667578,5.5571,3444.1,3443.1,11.0559346]
[1754195667780,4.428,3444.0,3443.6,3.0]
[1754195667992,4.428,3443.9,3443.7,0.9094]
[1754195668328,6.983,3444.2,3443.8,0.9094]
[1754195668483,4.427,3444.1,3443.9,0.9094]
[1754195668683,4.427,3444.1,3444.0,0.9094]
[1754195668903,0.4735,3444.1,3443.5,0.9094]
[1754195669079,4.428,3444.0,3443.5,0.9094]
[1754195669284,4.428,3444.0,3443.6,0.9094]
[1754195669590,4.9015,3444.0,3443.6,0.9094]
[1754195670118,0.03629605,3443.9,3443.6,0.9094]
[1754195670417,30.0,3443.7,3443.1,0.452]
[1754195670723,4.428,3443.6,3443.1,0.9094]
[1754195671016,4.428,3443.6,3443.2,0.9094]
[1754195671215,4.9015,3443.6,3443.2,0.9094]
[1754195671382,4.428,3443.6,3442.6,3.454]
[1754195671583,4.8708,3443.6,3442.7,0.9094]
[1754195671791,5.3443,3443.6,3442.6,3.454]
[1754195671990,30.50980027,3443.5,3442.8,0.9094]
[1754195672200,30.50980027,3443.5,3442.6,3.454]
[1754195672201,30.0,3443.3,3442.6,0.002]
[1754195672448,4.429,3443.2,3442.6,0.002]
[1754195672626,5.3462,3443.2,3442.6,0.002]
[1754195672805,4.8727,3443.2,3442.6,0.002]
[1754195673008,5.3462,3443.2,3442.6,0.002]
[1754195673682,4.429,3443.2,3442.6,0.002]
[1754195673914,4.429,3443.2,3442.7,0.4574]
[1754195674306,0.4735,3443.1,3442.7,0.9094]
[1754195674502,4.43,3443.0,3442.7,0.452]
[1754195675320,4.43,3443.0,3442.6,0.002]
[1754195675516,4.43,3443.0,3442.6,0.9114]
[1754195676945,4.43,3443.0,3442.6,0.002]
[1754195677099,4.43,3443.0,3442.7,0.9094]
[1754195678931,4.428,3442.9,3442.8,0.9094]
[1754195681303,4.428,3442.9,3442.7,0.87344]
[1754195681503,4.428,3442.9,3442.8,0.9094]
[1754195682605,4.428,3442.9,3442.8,1.78284]
[1754195683811,4.428,3442.9,3442.8,0.87344]
[1754195684219,5.3452,3442.9,3442.6,0.002]
[1754195684418,4.428,3442.9,3442.6,0.002]
[1754195684625,0.9172,3442.8,3442.6,0.002]
[1754195685137,0.4735,3442.8,3442.6,0.002]
[1754195686618,0.4437,3442.8,3442.6,0.002]
[1754195686820,0.9172,3442.7,3442.6,0.002]
[1754195687520,31.48802871,3442.7,3442.6,0.002]
[1754195687707,33.74572,3442.7,3442.6,0.002]
[1754195688549,3.74572,3442.7,3442.6,0.002]
[1754195688713,33.78202871,3442.7,3442.6,0.002]
[1754195688911,33.74572,3442.7,3442.6,0.002]
[1754195689837,3.89042908,3442.7,3442.6,0.002]
[1754195690009,33.89042908,3442.7,3442.6,0.002]
[1754195690210,33.74572,3442.7,3442.6,0.002]
[1754195693236,38.17772,3442.7,3442.6,0.002]
[1754195694242,8.17772,3442.7,3442.6,0.002]
[1754195694809,38.17772,3442.7,3442.6,0.002]
[1754195698558,45.16472,3442.7,3442.6,0.002]
[1754195699345,44.72102,3442.7,3442.6,0.002]
[1754195699955,45.18852,3442.7,3442.6,0.002]
[1754195700370,11.415,3442.7,3442.6,0.002]
[1754195700678,18.52500054,3442.7,3442.6,0.9675]
[1754195702129,18.52500054,3442.7,3442.6,0.002]
[1754195702679,49.48600054,3442.7,3442.6,0.002]
[1754195702847,19.48600054,3442.7,3442.6,0.002]
[1754195703167,19.01850054,3442.7,3442.6,0.002]
[1754195705376,18.52700054,3442.7,3442.6,0.9675]
[1754195705578,14.09700054,3442.7,3442.6,0.9675]
[1754195705741,14.09700054,3442.7,3442.6,6.25248146]
[1754195705941,18.52800054,3442.7,3442.6,6.25248146]
[1754195707658,18.52800054,3442.7,3442.6,4.841078]
[1754195708467,18.52800054,3442.7,3442.6,3.875578]
[1754195709269,18.52800054,3442.7,3442.6,4.342378]
[1754195709574,18.52800054,3442.7,3442.6,4.841078]
[1754195713074,18.52800054,3442.7,3442.6,4.342378]
[1754195713370,18.52800054,3442.7,3442.6,3.875578]
[1754195713562,19.02150054,3442.7,3442.6,3.875578]
[1754195715158,19.48900054,3442.7,3442.6,3.002]
[1754195715358,21.43790059,3442.7,3442.6,3.002]
[1754195715943,19.48900054,3442.7,3442.6,3.002]
[1754195720031,14.09700054,3442.7,3442.6,3.002]
[1754195720160,18.52700054,3442.7,3442.6,3.002]
[1754195720358,14.09700054,3442.7,3442.6,3.002]
[1754195720667,18.52700054,3442.7,3442.6,3.9417]
[1754195720875,18.52700054,3442.7,3442.6,3.4589]
[1754195721182,18.52700054,3442.7,3442.6,3.002]
[1754195721758,19.01650054,3442.7,3442.6,3.002]
[1754195722280,19.46650054,3442.7,3442.6,3.002]
[1754195723375,21.41315059,3442.7,3442.6,3.002]
[1754195723958,51.41315059,3442.7,3442.6,3.002]
[1754195725687,21.41315059,3442.7,3442.6,3.002]
[1754195726182,53.70715059,3442.7,3442.6,3.002]
[1754195726683,53.85192837,3442.7,3442.6,3.002]
[1754195731785,53.85201674,3442.7,3442.6,3.002]
[1754195732093,23.85201674,3442.7,3442.6,3.002]